bitfinex/quotes_SOLUSD_20250829
["timestamp","ask_amount","ask_price","bid_price","bid_amount"]
[1756478315066,26.0,210.37,210.31,0.03]
[1756478315270,26.0,210.35,210.31,0.03]
[1756478315497,43.4,210.34,210.31,0.03]
[1756478315901,48.83422181,210.34,210.31,0.03]
[1756478316082,43.38,210.33,210.31,0.03]
[1756478316396,44.06,210.33,210.31,0.03]
[1756478316559,4.75398976,210.35,210.31,0.03]
[1756478316762,44.04,210.32,210.31,0.03]
[1756478317199,57.63559401,210.32,210.31,0.03]
[1756478317400,57.77775558,210.32,210.31,0.03]
[1756478317564,14.41775558,210.32,210.31,0.03]
[1756478317759,62.51241514,210.32,210.31,0.03]
[1756478318965,11.88287432,210.39,210.31,0.03]
[1756478319289,40.27559401,210.32,210.31,0.03]
[1756478319467,83.55559401,210.32,210.31,0.03]
[1756478319668,82.87559401,210.32,210.31,0.03]
[1756478319975,69.26,210.32,210.31,0.03]
[1756478320705,69.24,210.32,210.31,0.03]
[1756478320863,43.22,210.32,210.31,0.03]
[1756478321067,43.22,210.32,210.31,0.73]
[1756478321367,43.22,210.32,210.31,0.03]
[1756478322783,26.06,210.35,210.31,0.03]
[1756478322784,26.0,210.34,210.31,0.73]
[1756478322992,43.2,210.33,210.31,0.73]
[1756478323178,43.2,210.33,210.31,0.03]
[1756478323787,47.95450503,210.33,210.31,0.03]
[1756478323981,43.2,210.33,210.31,0.03]
[1756478324291,47.95445356,210.33,210.31,0.03]
[1756478324598,14.41775558,210.32,210.31,0.03]
[1756478325086,14.41775558,210.32,210.19,0.14216157]
[1756478325087,26.0,210.29,210.19,0.14216157]
[1756478325289,26.0,210.29,210.16,16.65397791]
[1756478325290,43.1,210.28,210.16,16.65397791]
[1756478325461,43.1,210.28,210.16,4.7582794]
[1756478325462,26.0,210.25,210.16,4.7582794]
[1756478325668,43.1,210.24,210.16,4.7582794]
[1756478325987,43.1,210.24,210.14,16.79772452]
[1756478326185,43.1,210.24,210.14,4.90089384]
[1756478326389,43.1,210.24,210.14,4.75873227]
[1756478326774,43.1,210.24,210.14,16.65556295]
[1756478327086,43.1,210.24,210.15,0.7]
[1756478327571,14.27559401,210.23,210.15,0.7]
[1756478327768,14.27559401,210.23,210.12,4.78903629]
[1756478327769,26.0,210.2,210.12,4.78903629]
[1756478327968,43.0,210.19,210.12,0.03]
[1756478328590,30.75752947,210.2,210.12,0.03]
[1756478328591,42.98,210.18,210.12,0.73]
[1756478328887,42.98,210.18,210.12,0.03]
[1756478329189,42.98,210.18,210.12,0.73]
[1756478329498,42.98,210.18,210.12,0.03]
[1756478330193,0.68,210.17,210.12,0.03]
[1756478330374,26.0,210.15,210.12,0.03]
[1756478330575,0.14216157,210.21,210.12,0.03]
[1756478330576,0.68,210.21,210.13,0.7]
[1756478330878,5.43498831,210.31,210.15,26.0]
[1756478331077,0.68,210.28,210.16,0.84216157]
[1756478331273,63.68,210.28,210.16,0.84216157]
[1756478331783,0.68,210.32,210.18,0.14216157]
[1756478331991,42.96,210.28,210.2,4.75737392]
[1756478332493,42.96,210.28,210.2,16.65080874]
[1756478332873,42.96,210.28,210.21,0.7]
[1756478333068,34.28,210.29,210.21,0.7]
[1756478333273,43.6,210.28,210.2,4.75737392]
[1756478333975,0.68,210.28,210.19,0.7]
[1756478334174,42.9,210.27,210.16,4.75826221]
[1756478334404,26.0,210.24,210.16,4.75826221]
[1756478334778,0.68,210.23,210.14,4.75851784]
[1756478334973,42.86,210.22,210.14,4.75851784]
[1756478335699,42.86,210.22,210.14,16.65534852]
[1756478336208,0.68,210.31,210.16,13.59559401]
[1756478336503,3.36,210.3,210.2,0.14216157]
[1756478336682,3.36,210.29,210.19,26.7]
[1756478337002,3.36,210.29,210.2,0.7]
[1756478338281,3.36,210.29,210.22,0.14216157]
[1756478338487,3.36,210.29,210.22,0.84216157]
[1756478339002,0.06,210.29,210.22,0.84216157]
[1756478340198,0.06,210.29,210.25,39.73775558]
[1756478340375,0.06,210.29,210.26,4.75601636]
[1756478340799,0.06,210.32,210.3,0.14216157]
[1756478341009,0.06,210.32,210.31,0.85216157]
[1756478341308,0.06,210.32,210.31,0.71]
[1756478341804,0.06,210.32,210.31,0.85216157]
[1756478342386,0.06,210.32,210.31,5.60704721]
[1756478342586,0.06,210.34,210.31,5.60704721]
[1756478342802,0.06,210.34,210.33,0.14216157]
[1756478343014,0.06,210.34,210.33,0.85216157]
[1756478343190,1e-08,210.34,210.33,0.85216157]
[1756478343390,0.72,210.44,210.35,80.53999999]
[1756478343595,0.72,210.48,210.37,26.0]
[1756478343796,1e-08,210.4,210.38,13.73775558]
[1756478343993,1e-08,210.4,210.38,14.44775558]
[1756478344286,0.6,210.55,210.43,30.37036498]
[1756478344811,0.6,210.55,210.45,0.14216157]
[1756478345103,0.6,210.55,210.43,16.6326094]
[1756478345306,0.72,210.54,210.43,5.46217411]
[1756478345605,0.72,210.53,210.43,17.3426094]
[1756478345977,0.6,210.55,210.43,16.6326094]
[1756478346178,0.72,210.52,210.43,4.75217411]
[1756478346382,0.72,210.51,210.4,4.89501328]
[1756478346604,0.72,210.5,210.4,16.77714255]
[1756478346907,0.72,210.5,210.4,4.89501328]
[1756478347200,5.34954832,210.55,210.39,26.71]
[1756478347405,0.72,210.49,210.39,0.71]
[1756478347796,0.72,210.49,210.4,0.14216157]
[1756478348583,0.72,210.49,210.41,4.75262582]
[1756478349419,0.72,210.49,210.41,5.46262582]
[1756478349710,0.72,210.52,210.42,0.14216157]
[1756478350012,0.72,210.52,210.43,0.71]
[1756478350310,0.72,210.52,210.43,81.24999999]
[1756478350482,0.72,210.56,210.47,26.0]
[1756478350683,0.72,210.56,210.47,26.71]
[1756478350913,39.0,210.62,210.48,0.14216157]
[1756478351095,11.86665632,210.68,210.5,0.14216157]
[1756478351290,0.72,210.63,210.5,0.85216157]
[1756478351496,13.59559401,210.62,210.5,0.71]
[1756478351707,0.72,210.61,210.5,0.71]
[1756478352197,4.74833808,210.6,210.51,4.75036815]
[1756478352512,0.72,210.61,210.52,0.71]
[1756478353307,0.72,210.62,210.52,0.71]
[1756478353511,13.59559401,210.66,210.54,26.0]
[1756478353810,0.72,210.64,210.53,0.14216157]
[1756478353983,0.72,210.64,210.54,0.71]
[1756478354189,5.46746461,210.64,210.55,4.74946568]
[1756478354393,5.46746461,210.64,210.54,0.71]
[1756478354799,13.59559401,210.63,210.5,80.6]
[1756478355012,0.72,210.62,210.51,0.14216157]
[1756478355182,0.72,210.62,210.51,0.85216157]
[1756478355916,0.72,210.62,210.49,4.75081951]
[1756478356129,14.31559401,210.61,210.49,30.75081951]
[1756478356409,5.46851111,210.6,210.49,243.85081951]
[1756478358192,0.72,210.6,210.5,0.71]
[1756478358888,0.06,210.62,210.51,0.14216157]
[1756478359086,0.06,210.62,210.52,0.71]
[1756478359329,0.06,210.62,210.52,213.81]
[1756478360317,0.06,210.62,210.53,5.45991687]
[1756478360620,0.06,210.62,210.54,0.14216157]
[1756478360919,0.06,210.62,210.54,80.6]
[1756478361424,0.72,210.61,210.54,80.6]
[1756478362191,0.06,210.62,210.54,80.6]
[1756478362407,0.78,210.62,210.55,4.74946568]
[1756478363095,13.59559401,210.61,210.53,4.7496916]
[1756478363300,0.72,210.6,210.5,4.75059382]
[1756478363610,0.72,210.59,210.5,85.35059382]
[1756478363915,0.72,210.6,210.51,0.71]
[1756478364822,46.78792621,210.62,210.51,0.71]
[1756478364823,42.04,210.62,210.51,5.46034386]
[1756478365023,0.06,210.62,210.52,0.71]
[1756478365227,0.78,210.62,210.52,0.71]
[1756478365991,0.06,210.62,210.52,81.31]
[1756478366190,0.06,210.62,210.53,0.85216157]
[1756478366425,0.06,210.62,210.55,0.14216157]
[1756478366596,42.66,210.66,210.55,0.14216157]
[1756478366597,0.72,210.76,210.59,13.59559401]
[1756478366799,0.72,210.76,210.64,0.14216157]
[1756478367139,0.72,210.76,210.66,0.14216157]
[1756478367534,0.72,210.76,210.65,0.71]
[1756478367830,14.31559401,210.79,210.65,0.71]
[1756478367999,14.31559401,210.79,210.66,0.14216157]
[1756478368202,14.31559401,210.79,210.67,0.71]
[1756478368501,4.74428313,210.78,210.67,5.456591]
[1756478368715,0.72,210.77,210.67,5.456591]
[1756478369613,5.46471609,210.77,210.67,5.456591]
[1756478369932,0.72,210.77,210.67,5.456591]
[1756478370242,5.4645879,210.77,210.67,5.456591]
[1756478371422,3.83670492,210.84,210.64,26.0]
[1756478371423,0.72,210.8,210.69,4.74630974]
[1756478371723,5.46384125,210.8,210.69,4.74630974]
[1756478371909,0.72,210.8,210.69,4.74630974]
[1756478372535,0.72,210.79,210.69,4.74630974]
[1756478372702,14.31559401,210.78,210.64,0.68]
[1756478372905,0.14216157,210.77,210.64,0.68]
[1756478373113,13.59559401,210.75,210.64,0.68]
[1756478373316,13.59559401,210.73,210.61,0.68]
[1756478373626,4.74563401,210.72,210.61,5.42806689]
[1756478373831,4.74563401,210.72,210.55,11.87318744]
[1756478373832,14.31559401,210.71,210.59,4.74846238]
[1756478374002,4.74563401,210.72,210.59,4.74846238]
[1756478374202,0.72,210.7,210.6,0.68]
[1756478374404,4.74540962,210.73,210.6,5.351298]
[1756478374405,0.72,210.73,210.6,5.351298]
[1756478374605,41.86,210.74,210.61,0.68]
[1756478374902,13.59559401,210.78,210.61,0.68]
[1756478374903,5.46477052,210.76,210.62,0.14216157]
[1756478375121,0.72,210.76,210.63,0.68]
[1756478375308,46.58407979,210.79,210.64,0.14216157]
[1756478375511,5.46407979,210.79,210.65,5.42721101]
[1756478375718,0.72,210.79,210.66,0.68]
[1756478376236,5.46410365,210.79,210.66,0.68]
[1756478377215,0.72,210.82,210.67,0.14216157]
[1756478377417,0.72,210.82,210.68,0.68]
[1756478377618,0.06,210.77,210.69,4.74630974]
[1756478377815,0.06,210.77,210.7,0.68]
[1756478378537,0.06,210.77,210.72,26.0]
[1756478378738,0.06,210.77,210.73,0.68]
[1756478379526,0.06,210.77,210.74,4.74518363]
[1756478379729,0.06,210.77,210.75,0.68]
[1756478380215,0.06,210.77,210.76,0.68]
[1756478380420,0.06,210.77,210.74,4.74518363]
[1756478380651,0.06,210.77,210.72,4.74563401]
[1756478380941,0.06,210.77,210.64,0.68]
[1756478380942,0.72,210.76,210.64,0.68]
[1756478381140,0.72,210.76,210.62,5.42788719]
[1756478381311,13.59559401,210.74,210.61,0.03]
[1756478381519,4.74563401,210.72,210.61,4.77791373]
[1756478381719,4.74563401,210.72,210.61,0.03]
[1756478381720,0.72,210.71,210.61,0.03]
[1756478382445,0.72,210.73,210.61,0.71]
[1756478383035,0.72,210.74,210.63,26.0]
[1756478383213,0.06,210.77,210.63,26.0]
[1756478383214,0.06,210.77,210.64,0.68]
[1756478383612,0.06,210.77,210.65,16.61523854]
[1756478383838,0.06,210.77,210.66,0.68]
[1756478384808,0.06,210.77,210.67,0.14216157]
[1756478385047,0.78,210.77,210.66,26.68]
[1756478385251,0.78,210.77,210.66,0.68]
[1756478385751,5.52457856,210.77,210.63,0.68]
[1756478387225,0.78,210.77,210.64,0.14216157]
[1756478387424,0.06,210.77,210.66,26.14216157]
[1756478387641,0.06,210.77,210.68,16.75503416]
[1756478388023,0.06,210.77,210.69,0.68]
[1756478388845,0.06,210.77,210.71,26.0]
[1756478389042,0.06,210.77,210.72,0.82216157]
[1756478389714,0.06,210.77,210.73,16.60893085]
[1756478389939,0.06,210.77,210.74,0.68]
[1756478390146,0.06,210.77,210.73,4.74540881]
[1756478390928,0.72,210.76,210.67,4.74676033]
[1756478391355,0.72,210.76,210.67,16.61366117]
[1756478391644,0.06,210.77,210.69,4.74630974]
[1756478392249,0.06,210.77,210.7,0.68]
[1756478393637,0.72,210.76,210.65,0.68]
[1756478393824,0.72,210.76,210.66,4.74698566]
[1756478394028,0.72,210.75,210.62,0.68]
[1756478394221,13.59559401,210.74,210.61,0.03]
[1756478394443,0.14216157,210.71,210.61,0.03]
[1756478394639,0.14216157,210.71,210.58,0.03]
[1756478394640,0.14216157,210.68,210.58,0.03]
[1756478394829,27.88559401,210.69,210.58,0.03]
[1756478394830,27.88559401,210.66,210.58,0.03]
[1756478395148,13.59559401,210.64,210.58,0.03]
[1756478395329,13.59559401,210.62,210.58,0.03]
[1756478395529,0.14216157,210.61,210.56,0.03]
[1756478395749,0.72,210.6,210.45,4.75172249]
[1756478395953,0.72,210.6,210.39,4.95305685]
[1756478395954,28.02775558,210.57,210.39,4.95305685]
[1756478396140,28.02775558,210.55,210.39,4.95305685]
[1756478396337,13.73775558,210.53,210.39,4.95305685]
[1756478396537,13.59559401,210.51,210.39,4.95305737]
[1756478396854,0.72,210.51,210.4,0.68]
[1756478397050,13.59559401,210.59,210.4,0.68]
[1756478397051,13.59559401,210.54,210.42,26.0]
[1756478397222,0.72,210.51,210.39,21.62118588]
[1756478397422,0.72,210.51,210.4,0.68]
[1756478397850,0.72,210.51,210.41,16.63419038]
[1756478398534,0.72,210.5,210.39,4.95299782]
[1756478398838,0.72,210.5,210.39,17.51569186]
[1756478399351,0.72,210.53,210.4,0.68]
[1756478399739,0.72,210.53,210.41,4.75262582]
[1756478399943,0.72,210.52,210.41,4.75262582]
[1756478400139,0.72,210.52,210.42,0.68]
[1756478400343,0.72,210.52,210.39,0.2]
[1756478400344,13.59559401,210.51,210.39,0.2]
[1756478400558,13.59559401,210.47,210.39,0.2]
[1756478400774,0.14216157,210.46,210.39,0.2]
[1756478401055,13.73775558,210.44,210.39,0.2]
[1756478401453,13.73775558,210.42,210.39,0.2]
[1756478401650,13.73775558,210.4,210.39,0.2]
[1756478401855,3.51673555,210.4,210.39,0.2]
[1756478402059,4.20673555,210.4,210.39,0.2]
[1756478402363,41.86,210.41,210.39,0.2]
[1756478402734,0.69,210.44,210.39,0.2]
[1756478402951,0.69,210.43,210.39,0.2]
[1756478403268,0.69,210.45,210.39,4.95298653]
[1756478403839,0.69,210.44,210.39,0.2]
[1756478404039,0.69,210.43,210.39,0.2]
[1756478404537,13.59559401,210.41,210.39,0.2]
[1756478404750,0.69,210.4,210.39,0.2]
[1756478404950,26.0,210.44,210.39,0.2]
[1756478405270,0.69,210.43,210.39,0.2]
[1756478405470,0.69,210.45,210.39,4.95300758]
[1756478405646,0.69,210.45,210.39,0.2]
[1756478405854,5.44176618,210.45,210.39,0.2]
[1756478406045,0.69,210.45,210.39,0.2]
[1756478406243,0.69,210.45,210.39,4.95304112]
[1756478406735,0.69,210.44,210.39,0.2]
[1756478406935,0.69,210.43,210.39,0.2]
[1756478407251,41.82,210.46,210.39,4.9530626]
[1756478407559,42.51,210.46,210.39,4.9530626]
[1756478407860,26.0,210.42,210.39,0.2]
[1756478408060,13.59559401,210.41,210.39,0.2]
[1756478408557,14.28559401,210.41,210.39,0.2]
[1756478408734,13.59559401,210.45,210.39,0.2]
[1756478408934,39.59559401,210.45,210.39,4.95301394]
[1756478409171,26.0,210.45,210.39,4.95307268]
[1756478409473,26.0,210.45,210.39,4.95304591]
[1756478409635,13.59559401,210.44,210.39,0.2]
[1756478409934,13.59559401,210.44,210.39,4.95307721]
[1756478410355,26.0,210.45,210.39,4.95307721]
[1756478410554,14.28559401,210.44,210.39,0.2]
[1756478410856,13.59559401,210.4,210.39,0.2]
[1756478411161,55.41559401,210.4,210.39,0.2]
[1756478411345,56.10559401,210.4,210.39,0.2]
[1756478411655,42.51,210.4,210.39,0.2]
[1756478411865,41.82,210.4,210.39,0.2]
[1756478412179,4.75181073,210.45,210.39,0.2]
[1756478412180,13.59559401,210.44,210.39,0.2]
[1756478412458,67.78,210.41,210.39,0.2]
[1756478413142,14.28559401,210.4,210.39,0.2]
[1756478413345,14.42775558,210.4,210.39,0.2]
[1756478413644,13.59559401,210.36,210.3,0.03]
[1756478413834,41.76,210.35,210.3,4.78508666]
[1756478414036,42.45,210.35,210.3,0.03]
[1756478414468,14.28559401,210.34,210.3,0.03]
[1756478414713,39.59559401,210.31,210.3,0.03]
[1756478414842,39.73775558,210.31,210.3,0.03]
[1756478415162,14.42775558,210.31,210.3,0.03]
[1756478415981,39.59559401,210.28,210.27,0.03]
[1756478416174,81.33559401,210.28,210.27,0.03]
[1756478416381,82.16775558,210.28,210.27,0.03]
[1756478416570,55.33559401,210.28,210.27,0.03]
[1756478416766,41.74,210.28,210.27,0.03]
[1756478416966,41.72,210.29,210.27,0.03]
[1756478417168,13.59559401,210.32,210.27,0.75]
[1756478417367,13.59559401,210.38,210.28,0.72]
[1756478417568,41.76,210.37,210.27,0.03]
[1756478417773,13.73775558,210.36,210.27,0.03]
[1756478417964,13.59559401,210.36,210.27,4.78579017]
[1756478418366,13.59559401,210.36,210.28,0.72]
[1756478418562,41.76,210.37,210.28,0.72]
[1756478419382,41.76,210.37,210.3,26.0]
[1756478419585,41.76,210.37,210.31,0.72]
[1756478419887,41.76,210.37,210.28,0.72]
[1756478420062,41.76,210.37,210.29,4.75533786]
[1756478420260,41.7,210.38,210.32,26.0]
[1756478420560,13.59559401,210.41,210.33,0.72]
[1756478420561,41.7,210.41,210.33,0.72]
[1756478420761,41.7,210.41,210.33,81.32]
[1756478421068,41.7,210.41,210.34,0.72]
[1756478421266,13.59559401,210.45,210.34,0.72]
[1756478421576,41.7,210.42,210.34,81.32]
[1756478422196,14.28559401,210.41,210.34,80.6]
[1756478422371,14.28559401,210.41,210.33,4.75432403]
[1756478422569,13.59559401,210.39,210.32,80.6]
[1756478422971,13.59559401,210.39,210.32,85.35448577]
[1756478423179,13.59559401,210.39,210.32,80.6]
[1756478423375,13.59559401,210.37,210.28,106.6]
[1756478423582,13.59559401,210.35,210.28,106.6]
[1756478423894,42.33,210.36,210.28,80.6]
[1756478424088,13.59559401,210.35,210.28,85.35553584]
[1756478424292,0.69,210.34,210.27,0.03]
[1756478424592,41.64,210.36,210.27,4.78578218]
[1756478424806,41.62,210.36,210.28,0.72]
[1756478425369,14.28559401,210.35,210.27,30.78578218]
[1756478425688,41.62,210.36,210.27,31.50578218]
[1756478426268,41.62,210.36,210.27,43.39525761]
[1756478426670,41.62,210.36,210.27,31.50578218]
[1756478426871,14.28559401,210.35,210.27,4.78578218]
[1756478427089,13.59559401,210.33,210.27,0.03]
[1756478427611,46.37382242,210.36,210.27,4.7857857]
[1756478427612,47.06382242,210.36,210.27,4.7857857]
[1756478427902,0.69,210.36,210.28,0.72]
[1756478428073,0.69,210.36,210.27,0.03]
[1756478428074,41.58,210.35,210.27,0.03]
[1756478428273,14.28559401,210.34,210.27,0.03]
[1756478428670,0.14216157,210.31,210.27,0.03]
[1756478428983,0.14216157,210.29,210.27,0.03]
[1756478429191,55.88559401,210.28,210.27,0.03]
[1756478429619,0.14216157,210.26,210.25,0.03]
[1756478429773,17.22210569,210.26,210.25,0.03]
[1756478429973,17.91210569,210.26,210.25,0.03]
[1756478430174,59.34994412,210.26,210.25,0.03]
[1756478430374,64.10596048,210.26,210.25,0.03]
[1756478430678,64.24812205,210.26,210.25,0.03]
[1756478431281,13.73775558,210.25,210.18,0.2]
[1756478431502,13.73775558,210.23,210.18,0.2]
[1756478431710,0.14216157,210.2,210.18,0.2]
[1756478431897,0.86216157,210.19,210.18,0.2]
[1756478432392,19.21535584,210.19,210.18,0.2]
[1756478432876,22.70084201,210.19,210.18,0.2]
[1756478434579,64.26084201,210.19,210.18,0.2]
[1756478435010,13.73775558,210.18,210.14,0.03]
[1756478435203,13.73775558,210.16,210.14,0.03]
[1756478435514,58.78324175,210.15,210.14,0.03]
[1756478435679,59.50324175,210.15,210.14,0.03]
[1756478436075,13.73775558,210.14,210.12,0.03]
[1756478436285,17.22324175,210.13,210.12,0.03]
[1756478436508,22.70220048,210.13,210.12,1e-08]
[1756478436707,22.70220048,210.13,210.11,0.03]
[1756478436708,13.73775558,210.12,210.11,0.03]
[1756478436914,3.63710089,210.12,210.11,0.03]
[1756478437124,4.35710089,210.12,210.11,0.03]
[1756478437616,4.35710089,210.12,209.97,0.14216157]
[1756478437617,0.52359442,210.09,209.97,0.14216157]
[1756478437820,41.58,210.08,210.01,26.0]
[1756478437987,0.99998906,210.09,210.01,26.0]
[1756478437988,0.52359442,210.09,210.01,26.0]
[1756478438184,0.47639464,210.11,210.05,26.0]
[1756478438507,21.30359442,210.13,210.06,0.14216157]
[1756478438807,38.64,210.16,210.07,13.59559401]
[1756478439019,0.52359442,210.23,210.11,0.14216157]
[1756478439312,3.982431,210.22,210.14,26.0]
[1756478439487,0.06,210.3,210.14,26.0]
[1756478439488,32.18,210.25,210.14,26.0]
[1756478439690,0.52359442,210.21,210.15,0.68]
[1756478440589,0.52359442,210.23,210.16,4.7582794]
[1756478440786,0.99998906,210.26,210.17,0.68]
[1756478441097,41.58,210.28,210.19,26.0]
[1756478441400,3.50824999,210.27,210.2,0.68]
[1756478441714,0.58359442,210.3,210.24,26.0]
[1756478441919,0.58359442,210.3,210.25,0.68]
[1756478442243,0.06,210.3,210.26,0.68]
[1756478442416,0.06,210.3,210.27,0.68]
[1756478442584,0.06,210.3,210.25,4.75624256]
[1756478443087,0.06,210.3,210.25,0.68]
[1756478443481,0.53639464,210.3,210.24,4.75641882]
[1756478443686,0.53639464,210.3,210.25,26.0]
[1756478444092,0.06,210.3,210.26,0.68]
[1756478444286,0.06,210.3,210.27,0.68]
[1756478444596,0.06,210.3,210.29,4.75533786]
[1756478444805,0.06,210.3,210.28,0.68]
[1756478445086,0.06,210.3,210.29,0.68]
[1756478445407,0.06,210.3,210.26,4.75582506]
[1756478445610,0.06,210.3,210.28,0.68]
[1756478445812,0.06,210.33,210.29,26.14216157]
[1756478446026,0.06,210.33,210.3,0.82216157]
[1756478446229,0.06,210.33,210.3,0.68]
[1756478446433,0.06,210.33,210.29,26.0]
[1756478446434,0.06,210.33,210.31,0.68]
[1756478446598,0.06,210.33,210.32,26.0]
[1756478447109,0.06,210.33,210.3,4.75504434]
[1756478447308,0.06,210.33,210.31,26.0]
[1756478447538,0.06,210.33,210.25,0.68]
[1756478447738,0.06,210.33,210.27,26.0]
[1756478447912,0.06,210.33,210.28,0.68]
[1756478448237,0.06,210.33,210.29,0.68]
[1756478448522,0.06,210.33,210.3,0.68]
[1756478448732,0.06,210.33,210.31,5.43470427]
[1756478448917,0.06,210.33,210.28,4.755564]
[1756478449621,0.06,210.33,210.31,26.0]
[1756478450010,0.06,210.33,210.32,0.68]
[1756478450711,0.06,210.33,210.32,5.43465956]
[1756478451041,0.06,210.33,210.31,26.0]
[1756478451042,0.06,210.33,210.31,30.75478171]
[1756478451417,0.06,210.33,210.31,4.75478171]
[1756478451609,0.06,210.33,210.28,0.68]
[1756478451811,0.06,210.33,210.27,26.0]
[1756478451812,0.06,210.33,210.27,4.75579017]
[1756478452012,0.06,210.33,210.28,26.0]
[1756478452417,0.06,210.33,210.28,26.68]
[1756478452619,0.06,210.33,210.28,0.68]
[1756478452819,0.06,210.33,210.29,4.75533786]
[1756478453845,0.06,210.33,210.3,0.03]
[1756478454210,0.06,210.33,210.31,0.68]
[1756478454604,0.06,210.33,210.3,0.03]
[1756478454852,0.06,210.33,210.3,26.03]
[1756478455340,0.58359442,210.33,210.3,0.03]
[1756478455527,0.52359442,210.31,210.3,0.03]
[1756478455916,1.24359442,210.31,210.3,0.03]
[1756478456812,65.2712359,210.31,210.3,0.03]
[1756478457443,15.31558307,210.31,210.3,0.03]
[1756478457740,1.71998906,210.31,210.3,0.03]
[1756478457918,1.24359442,210.31,210.3,0.03]
[1756478458332,5.99848006,210.31,210.3,0.03]
[1756478458532,1.24359442,210.31,210.3,0.03]
[1756478458918,6.14064163,210.31,210.3,0.03]
[1756478459128,10.13734067,210.31,210.3,0.03]
[1756478459761,10.13763429,210.31,210.3,0.03]
[1756478460114,10.13752313,210.31,210.3,0.03]
[1756478460343,4.52047592,210.31,210.3,0.03]
[1756478460543,0.52359442,210.31,210.3,0.03]
[1756478460720,1.22359442,210.31,210.3,0.03]
[1756478461054,0.52359442,210.28,210.27,0.03]
[1756478461250,14.11918843,210.28,210.27,0.03]
[1756478461454,14.81918843,210.28,210.27,0.03]
[1756478461759,14.11918843,210.26,210.25,0.03]
[1756478461955,14.59558307,210.26,210.25,0.03]
[1756478462165,1.69998906,210.26,210.25,0.03]
[1756478462329,42.53998906,210.26,210.25,0.03]
[1756478462536,0.52359442,210.22,210.16,26.0]
[1756478462841,0.52359442,210.22,210.16,31.46825039]
[1756478463038,0.47639464,210.25,210.16,31.46825039]
[1756478463039,0.52359442,210.24,210.17,0.71]
[1756478463258,0.52359442,210.22,210.17,0.71]
[1756478463438,4.75577539,210.28,210.16,30.75825039]
[1756478463439,0.52359442,210.24,210.18,0.71]
[1756478464335,0.52359442,210.26,210.18,0.71]
[1756478464528,0.52359442,210.28,210.21,26.0]
[1756478464733,0.52359442,210.28,210.22,0.71]
[1756478464932,0.52359442,210.28,210.23,4.75669504]
[1756478465123,0.47639464,210.29,210.23,4.75669504]
[1756478465124,0.47639464,210.29,210.24,0.71]
[1756478465328,13.59559401,210.34,210.23,4.75669504]
[1756478465329,0.58359442,210.33,210.26,26.0]
[1756478465771,0.06,210.33,210.27,0.71]
[1756478467128,0.06,210.33,210.31,26.0]
[1756478467329,0.06,210.33,210.32,0.71]
[1756478469077,0.06,210.35,210.34,26.0]
[1756478469389,0.06,210.36,210.34,40.44775558]
[1756478469674,0.06,210.36,210.32,5.46465956]
[1756478469851,0.06,210.36,210.32,4.75465956]
[1756478470258,0.53639464,210.36,210.32,4.75465956]